bitfinex/quotes_SOLUSD_20250419
["timestamp","ask_amount","ask_price","bid_price","bid_amount"]
[1745027004358,31.84396376,134.99,134.13,22.272542]
[1745027004659,9.57142176,134.99,134.13,22.272542]
[1745027004958,31.84396376,134.99,134.13,22.272542]
[1745027005659,9.57142176,134.99,134.13,22.272542]
[1745027005960,31.84396376,134.99,134.13,22.272542]
[1745027006660,9.57142176,134.99,134.13,22.272542]
[1745027007261,19.14284376,134.99,134.13,22.272542]
[1745027007662,9.57142176,134.99,134.13,22.272542]
[1745027007961,28.71426476,134.99,134.13,22.272542]
[1745027008666,9.57142176,134.99,134.13,22.272542]
[1745027008964,31.84396376,134.99,134.13,22.272542]
[1745027009663,9.57142176,134.99,134.13,22.272542]
[1745027010063,31.84396376,134.99,134.13,22.272542]
[1745027011068,9.57142176,134.99,134.13,22.272542]
[1745027011367,31.84396376,134.99,134.13,22.272542]
[1745027011668,9.57142176,134.99,134.13,22.272542]
[1745027011972,31.84396376,134.99,134.13,22.272542]
[1745027012671,9.57142176,134.99,134.13,22.272542]
[1745027012970,31.84396376,134.99,134.13,22.272542]
[1745027013673,9.57142176,134.99,134.13,22.272542]
[1745027014176,19.14284376,134.99,134.13,22.272542]
[1745027014681,9.57142176,134.99,134.13,22.272542]
[1745027014980,28.71426576,134.99,134.13,22.272542]
[1745027015681,9.57142176,134.99,134.13,22.272542]
[1745027016283,31.84396376,134.99,134.13,22.272542]
[1745027016683,9.57142176,134.99,134.13,22.272542]
[1745027016982,31.84396376,134.99,134.13,22.272542]
[1745027017683,9.57142176,134.99,134.13,22.272542]
[1745027017985,31.84396376,134.99,134.13,22.272542]
[1745027018685,9.57142176,134.99,134.13,22.272542]
[1745027019086,19.14284376,134.99,134.13,22.272542]
[1745027019688,9.57142176,134.99,134.13,22.272542]
[1745027020587,28.71426476,134.99,134.13,22.272542]
[1745027021486,9.57142176,134.99,134.13,22.272542]
[1745027021690,31.84396376,134.99,134.13,22.272542]
[1745027021988,9.57142176,134.99,134.13,22.272542]
[1745027022289,31.84396376,134.99,134.13,22.272542]
[1745027022990,9.57142176,134.99,134.13,22.272542]
[1745027023291,31.84396376,134.99,134.13,22.272542]
[1745027023993,9.57142176,134.99,134.13,22.272542]
[1745027024292,31.84396376,134.99,134.13,22.272542]
[1745027024992,9.57142176,134.99,134.13,22.272542]
[1745027025491,19.14284276,134.99,134.13,22.272542]
[1745027025992,9.57142176,134.99,134.13,22.272542]
[1745027026292,28.71426376,134.99,134.13,22.272542]
[1745027026593,9.57142176,134.99,134.13,22.272542]
[1745027026893,31.84396376,134.99,134.13,22.272542]
[1745027027798,9.57142176,134.99,134.13,22.272542]
[1745027028097,31.84396376,134.99,134.13,22.272542]
[1745027028595,9.57142176,134.99,134.13,22.272542]
[1745027029093,19.14284376,134.99,134.13,22.272542]
[1745027029594,9.57142176,134.99,134.13,22.272542]
[1745027029997,28.71426576,134.99,134.13,22.272542]
[1745027031204,9.57142176,134.99,134.13,22.272542]
[1745027031586,31.84396376,134.99,134.13,22.272542]
[1745027031898,9.57142176,134.99,134.13,22.272542]
[1745027032203,31.84396376,134.99,134.13,22.272542]
[1745027032902,9.57142176,134.99,134.13,22.272542]
[1745027033202,31.84396376,134.99,134.13,22.272542]
[1745027034006,9.57142176,134.99,134.13,22.272542]
[1745027034199,31.84396376,134.99,134.13,22.272542]
[1745027034901,9.57142176,134.99,134.13,22.272542]
[1745027035205,31.84396376,134.99,134.13,22.272542]
[1745027035905,9.57142176,134.99,134.13,22.272542]
[1745027036204,31.84396376,134.99,134.13,22.272542]
[1745027036909,9.57142176,134.99,134.13,22.272542]
[1745027037508,19.14284376,134.99,134.13,22.272542]
[1745027037908,9.57142176,134.99,134.13,22.272542]
[1745027038206,28.71426576,134.99,134.13,22.272542]
[1745027038909,9.57142176,134.99,134.13,22.272542]
[1745027039215,31.84396376,134.99,134.13,22.272542]
[1745027039911,9.57142176,134.99,134.13,22.272542]
[1745027040206,31.84396376,134.99,134.13,22.272542]
[1745027040908,9.57142176,134.99,134.13,22.272542]
[1745027041208,31.84396376,134.99,134.13,22.272542]
[1745027042010,9.57142176,134.99,134.13,22.272542]
[1745027042200,31.84396376,134.99,134.13,22.272542]
[1745027042913,9.57142176,134.99,134.13,22.272542]
[1745027043212,31.84396376,134.99,134.13,22.272542]
[1745027043910,9.57142176,134.99,134.13,22.272542]
[1745027044510,19.14284376,134.99,134.13,22.272542]
[1745027044916,9.57142176,134.99,134.13,22.272542]
[1745027045213,28.71426576,134.99,134.13,22.272542]
[1745027046016,9.57142176,134.99,134.13,22.272542]
[1745027046206,31.84396376,134.99,134.13,22.272542]
[1745027046915,9.57142176,134.99,134.13,22.272542]
[1745027047216,31.84396376,134.99,134.13,22.272542]
[1745027047915,9.57142176,134.99,134.13,22.272542]
[1745027048216,31.84396376,134.99,134.13,22.272542]
[1745027048917,9.57142176,134.99,134.13,22.272542]
[1745027049217,31.84396376,134.99,134.13,22.272542]
[1745027049919,9.57142176,134.99,134.13,22.272542]
[1745027052422,19.14284276,134.99,134.13,22.272542]
[1745027052721,9.57142176,134.99,134.13,22.272542]
[1745027053021,28.71426476,134.99,134.13,22.272542]
[1745027053321,9.57142176,134.99,134.13,22.272542]
[1745027053622,31.84396376,134.99,134.13,22.272542]
[1745027054321,9.57142176,134.99,134.13,22.272542]
[1745027054623,31.84396376,134.99,134.13,22.272542]
[1745027055424,9.57142176,134.99,134.13,22.272542]
[1745027055638,31.84396376,134.99,134.13,22.272542]
[1745027056336,9.57142176,134.99,134.13,22.272542]
[1745027056636,31.84396376,134.99,134.13,22.272542]
[1745027057335,9.57142176,134.99,134.13,22.272542]
[1745027058332,19.14284276,134.99,134.13,22.272542]
[1745027058638,9.57142176,134.99,134.13,22.272542]
[1745027059137,19.14284376,134.99,134.13,22.272542]
[1745027059440,9.57142176,134.99,134.13,22.272542]
[1745027059738,28.71426476,134.99,134.13,22.272542]
[1745027060444,9.57142176,134.99,134.13,22.272542]
[1745027060942,31.84396376,134.99,134.13,22.272542]
[1745027061524,9.57142176,134.99,134.13,22.272542]
[1745027062342,31.84396376,134.99,134.13,22.272542]
[1745027062641,9.57142176,134.99,134.13,22.272542]
[1745027062946,31.84396376,134.99,134.13,22.272542]
[1745027063641,9.57142176,134.99,134.13,22.272542]
[1745027064243,19.14284376,134.99,134.13,22.272542]
[1745027064643,9.57142176,134.99,134.13,22.272542]
[1745027064945,28.71426476,134.99,134.13,22.272542]
[1745027066143,9.57142176,134.99,134.13,22.272542]
[1745027066647,19.14284276,134.99,134.13,22.272542]
[1745027066836,9.57142176,134.99,134.13,22.272542]
[1745027067147,28.71426476,134.99,134.13,22.272542]
[1745027067446,9.57142176,134.99,134.13,22.272542]
[1745027067747,31.84396376,134.99,134.13,22.272542]
[1745027068450,9.57142176,134.99,134.13,22.272542]
[1745027068851,19.14284376,134.99,134.13,22.272542]
[1745027069450,9.57142176,134.99,134.13,22.272542]
[1745027069751,28.71426576,134.99,134.13,22.272542]
[1745027070451,9.57142176,134.99,134.13,22.272542]
[1745027070753,31.84396376,134.99,134.13,22.272542]
[1745027072052,9.57142176,134.99,134.13,22.272542]
[1745027072552,19.14284376,134.99,134.13,22.272542]
[1745027072852,9.57142176,134.99,134.13,22.272542]
[1745027073153,28.71426576,134.99,134.13,22.272542]
[1745027077459,22.88803029,134.99,134.13,22.272542]
[1745027080260,28.9889227,134.99,134.13,22.272542]
[1745027080760,9.8460787,134.99,134.13,22.272542]
[1745027080962,32.1186207,134.99,134.13,22.272542]
[1745027081766,9.8460787,134.99,134.13,22.272542]
[1745027082060,32.1186207,134.99,134.13,22.272542]
[1745027082764,9.8460787,134.99,134.13,22.272542]
[1745027083163,19.6921567,134.99,134.13,22.272542]
[1745027083764,9.8460787,134.99,134.13,22.272542]
[1745027084062,29.5382357,134.99,134.13,22.272542]
[1745027084363,9.8460787,134.99,134.13,22.272542]
[1745027084666,32.1186207,134.99,134.13,22.272542]
[1745027085364,9.8460787,134.99,134.13,22.272542]
[1745027085964,19.6921567,134.99,134.13,22.272542]
[1745027086362,9.8460787,134.99,134.13,22.272542]
[1745027086665,29.5382357,134.99,134.13,22.272542]
[1745027086966,9.8460787,134.99,134.13,22.272542]
[1745027087265,32.1186207,134.99,134.13,22.272542]
[1745027087964,9.8460787,134.99,134.13,22.272542]
[1745027088262,32.1186207,134.99,134.13,22.272542]
[1745027088962,9.8460787,134.99,134.13,22.272542]
[1745027089276,32.1186207,134.99,134.13,22.272542]
[1745027090064,9.8460787,134.99,134.13,22.272542]
[1745027090468,32.1186207,134.99,134.13,22.272542]
[1745027090965,9.8460787,134.99,134.13,22.272542]
[1745027091268,32.1186207,134.99,134.13,22.272542]
[1745027092065,9.8460787,134.99,134.13,22.272542]
[1745027092267,32.1186207,134.99,134.13,22.272542]
[1745027092971,9.8460787,134.99,134.13,22.272542]
[1745027093267,32.1186207,134.99,134.13,22.272542]
[1745027093970,9.8460787,134.99,134.13,22.272542]
[1745027094269,32.1186207,134.99,134.13,22.272542]
[1745027094971,9.8460787,134.99,134.13,22.272542]
[1745027095574,19.6921567,134.99,134.13,22.272542]
[1745027095972,9.8460787,134.99,134.13,22.272542]
[1745027096273,29.5382347,134.99,134.13,22.272542]
[1745027096780,9.8460787,134.99,134.13,22.272542]
[1745027097070,32.1186207,134.99,134.13,22.272542]
[1745027097572,9.8460787,134.99,134.13,22.272542]
[1745027097871,32.1186207,134.99,134.13,22.272542]
[1745027098771,9.8460787,134.99,134.13,22.272542]
[1745027098971,32.1186207,134.99,134.13,22.272542]
[1745027099571,9.8460787,134.99,134.13,22.272542]
[1745027099870,32.1186207,134.99,134.13,22.272542]
[1745027100566,9.8460787,134.99,134.13,22.272542]
[1745027100873,32.1186207,134.99,134.13,22.272542]
[1745027101568,40.72860034,134.99,134.13,22.272542]
[1745027101762,18.45605834,134.99,134.13,22.272542]
[1745027102172,36.91211734,134.99,134.13,22.272542]
[1745027103376,28.3021377,134.99,134.13,22.272542]
[1745027104375,9.8460787,134.99,134.13,22.272542]
[1745027104676,32.1186207,134.99,134.13,22.272542]
[1745027105774,9.8460787,134.99,134.13,22.272542]
[1745027106076,32.1186207,134.99,134.13,22.272542]
[1745027106375,9.8460787,134.99,134.13,22.272542]
[1745027106876,19.6921567,134.99,134.13,22.272542]
[1745027107375,9.8460787,134.99,134.13,22.272542]
[1745027107675,29.5382357,134.99,134.13,22.272542]
[1745027107975,9.8460787,134.99,134.13,22.272542]
[1745027108275,32.1186207,134.99,134.13,22.272542]
[1745027108982,9.8460787,134.99,134.13,22.272542]
[1745027109579,19.6921577,134.99,134.13,22.272542]
[1745027110281,9.8460787,134.99,134.13,22.272542]
[1745027110679,29.5382367,134.99,134.13,22.272542]
[1745027110883,19.692158,134.99,134.13,22.272542]
[1745027111184,0.03,135.0,134.13,22.272542]
[1745027111586,19.692158,134.99,134.13,22.272542]
[1745027116393,22.272542,134.99,134.13,22.272542]
[1745027117391,28.29812258,134.99,134.13,22.272542]
[1745027117686,6.02558058,134.99,134.13,22.272542]
[1745027117893,12.53085508,135.0,134.13,22.272542]
[1745027118087,22.272542,134.99,134.13,22.272542]
[1745027122695,28.34591692,134.99,134.13,22.272542]
[1745027122996,6.07337492,134.99,134.13,22.272542]
[1745027123191,12.53085508,135.0,134.13,22.272542]
[1745027123492,22.272542,134.99,134.13,22.272542]
[1745027127698,28.11512331,134.99,134.13,22.272542]
[1745027127997,5.84258131,134.99,134.13,22.272542]
[1745027128182,3.76755756,135.0,134.13,22.272542]
[1745027128380,22.272542,134.99,134.13,22.272542]
[1745027132602,28.37181572,134.99,134.13,22.272542]
[1745027132907,6.09927372,134.99,134.13,22.272542]
[1745027133089,29.55870496,135.0,134.13,22.272542]
[1745027133284,22.272542,134.99,134.13,22.272542]
[1745027137503,28.28858417,134.99,134.13,22.272542]
[1745027137804,6.01604217,134.99,134.13,22.272542]
[1745027137999,29.55870496,135.0,134.13,22.272542]
[1745027138302,22.272542,134.99,134.13,22.272542]
[1745027142302,28.21041515,134.99,134.13,22.272542]
[1745027142607,5.93787315,134.99,134.13,22.272542]
[1745027142801,29.55870496,135.0,134.13,22.272542]
[1745027143001,22.272542,134.99,134.13,22.272542]
[1745027146913,28.32252937,134.99,134.13,22.272542]
[1745027147225,6.04998737,134.99,134.13,22.272542]
[1745027147519,22.272542,134.99,134.13,22.272542]
[1745027151531,28.20862843,134.99,134.13,22.272542]
[1745027151834,5.93608643,134.99,134.13,22.272542]
[1745027152031,37.83146835,135.0,134.13,22.272542]
[1745027152226,22.272542,134.99,134.13,22.272542]
[1745027156242,28.1993809,134.99,134.13,22.272542]
[1745027156628,5.9268389,134.99,134.13,22.272542]
[1745027156840,22.272542,134.99,134.13,22.272542]
[1745027160247,28.16110323,134.99,134.13,22.272542]
[1745027160555,5.88856123,134.99,134.13,22.272542]
[1745027160742,37.83146835,135.0,134.13,22.272542]
[1745027160944,22.272542,134.99,134.13,22.272542]
[1745027164953,28.37602555,134.99,134.13,22.272542]
[1745027165251,6.10348355,134.99,134.13,22.272542]
[1745027165442,37.83146835,135.0,134.13,22.272542]
[1745027165635,22.272542,134.99,134.13,22.272542]
[1745027170157,28.37377054,134.99,134.13,22.272542]
[1745027170659,6.10122854,134.99,134.13,22.272542]
[1745027170846,28.37377054,134.99,134.13,22.272542]
[1745027171052,22.272542,134.99,134.13,22.272542]
[1745027172457,30.88252164,134.99,134.13,22.272542]
[1745027172758,8.60997964,134.99,134.13,22.272542]
[1745027173059,30.88252164,134.99,134.13,22.272542]
[1745027173752,37.83146835,135.0,134.13,22.272542]
[1745027174159,22.272542,134.99,134.13,22.272542]
[1745027174360,28.09258319,134.99,134.13,22.272542]
[1745027174758,5.82004119,134.99,134.13,22.272542]
[1745027174959,8.60997964,134.98,134.13,22.272542]
[1745027175460,22.272542,134.97,134.13,22.272542]
[1745027175646,30.88252164,134.97,134.13,22.272542]
[1745027176160,8.60997964,134.97,134.13,22.272542]
[1745027176555,22.272542,134.96,134.13,22.272542]
[1745027178562,30.88252164,134.96,134.13,22.272542]
[1745027178862,8.60997964,134.96,134.13,22.272542]
[1745027179165,30.88252164,134.96,134.13,22.272542]
[1745027179567,22.272542,134.96,134.13,22.272542]
[1745027179965,5.82805618,134.99,134.13,22.272542]
[1745027180166,8.60997964,134.99,134.13,22.272542]
[1745027180467,30.88252164,134.99,134.13,22.272542]
[1745027180868,8.60997964,134.99,134.13,22.272542]
[1745027181056,37.83146835,135.0,134.13,22.272542]
[1745027181261,22.272542,134.99,134.13,22.272542]
[1745027182464,28.17715452,134.99,134.13,22.272542]
[1745027182766,5.90461252,134.99,134.13,22.272542]
[1745027182967,37.83146835,135.0,134.13,22.272542]
[1745027183163,22.272542,134.99,134.13,22.272542]
[1745027186561,28.10716498,134.99,134.13,22.272542]
[1745027186870,5.83462298,134.99,134.13,22.272542]
[1745027187072,29.55870496,135.0,134.13,22.272542]
[1745027187270,22.272542,134.99,134.13,22.272542]
[1745027191563,28.20666278,134.99,134.13,22.272542]
[1745027191876,5.93412078,134.99,134.13,22.272542]
[1745027192081,29.55870496,135.0,134.13,22.272542]
[1745027192377,22.272542,134.99,134.13,22.272542]
[1745027196381,22.272542,134.99,134.13,22.272542]
[1745027196580,28.19135678,134.99,134.13,22.272542]
[1745027196879,5.91881478,134.99,134.13,22.272542]
[1745027197177,22.272542,134.99,134.13,22.272542]
[1745027201076,28.35083858,134.99,134.13,22.272542]
[1745027201374,6.07829658,134.99,134.13,22.272542]
[1745027201582,29.55870496,135.0,134.13,22.272542]
[1745027201878,22.272542,134.99,134.13,22.272542]
[1745027205883,28.27831059,134.99,134.13,22.272542]
[1745027206185,6.00576859,134.99,134.13,22.272542]
[1745027206389,29.55870496,135.0,134.13,22.272542]
[1745027206688,22.272542,134.99,134.13,22.272542]
[1745027210392,28.27042208,134.99,134.13,22.272542]
[1745027210994,5.99788008,134.99,134.13,22.272542]
[1745027211182,22.272542,134.99,134.13,22.272542]
[1745027215195,28.17587186,134.99,134.13,22.272542]
[1745027215593,5.90332986,134.99,134.13,22.272542]
[1745027215892,22.272542,134.99,134.13,22.272542]
[1745027219199,28.20445941,134.99,134.13,22.272542]
[1745027219497,5.93191741,134.99,134.13,22.272542]
[1745027219682,36.79629379,135.0,134.13,22.272542]
[1745027219995,22.272542,134.99,134.13,22.272542]
[1745027223909,28.30437571,134.99,134.13,22.272542]
[1745027224203,6.03183371,134.99,134.13,22.272542]
[1745027224385,36.79629379,135.0,134.13,22.272542]
[1745027225002,22.272542,134.99,134.13,22.272542]
[1745027228609,28.20803077,134.99,134.13,22.272542]
[1745027228906,5.93548877,134.99,134.13,22.272542]
[1745027229107,36.79629379,135.0,134.13,22.272542]
[1745027229407,22.272542,134.99,134.13,22.272542]
[1745027233608,28.23781245,134.99,134.13,22.272542]
[1745027233811,22.272542,134.99,134.13,22.272542]
[1745027233994,33.05873623,135.0,134.13,22.272542]
[1745027234502,22.272542,134.99,134.13,22.272542]
[1745027234903,17.27531709,134.98,134.13,22.272542]
[1745027235508,22.272542,134.97,134.13,22.272542]
[1745027235808,8.60997964,134.96,134.13,22.272542]
[1745027236309,8.66533745,134.95,134.13,22.272542]
[1745027236513,8.66533745,134.95,134.13,28.35158522]
[1745027236703,22.272542,134.94,134.13,28.35158522]
[1745027236903,22.272542,134.94,134.13,6.07904322]
[1745027237099,22.272542,134.94,134.13,22.304004]
[1745027237409,8.60997964,134.93,134.13,22.304004]
[1745027238110,30.91398364,134.93,134.13,22.304004]
[1745027238408,8.60997964,134.93,134.13,22.304004]
[1745027238710,30.91398364,134.93,134.13,22.304004]
[1745027239518,8.60997964,134.93,134.13,22.304004]
[1745027239815,30.91398364,134.93,134.13,22.304004]
[1745027240410,8.60997964,134.93,134.13,22.304004]
[1745027240711,8.60997964,134.93,134.13,28.14843226]
[1745027240905,30.91398364,134.93,134.13,28.14843226]
[1745027241107,30.91398364,134.93,134.13,5.84442826]
[1745027241305,30.91398364,134.93,134.13,22.305662]
[1745027241507,8.60997964,134.93,134.13,22.305662]
[1745027241710,30.91564164,134.93,134.13,22.305662]
[1745027243012,8.60997964,134.93,134.13,22.305662]
[1745027243311,31.85940358,134.92,134.13,22.305662]
[1745027243514,8.60997964,134.91,134.13,22.305662]
[1745027243704,9.15185255,134.9,134.13,22.305662]
[1745027243894,8.60997964,134.89,134.13,22.305662]
[1745027244095,9.15185255,134.88,134.13,28.11953627]
[1745027244294,8.60997964,134.87,134.13,28.11953627]
[1745027244492,9.15185255,134.86,134.13,5.81387427]
[1745027244707,9.15185255,134.86,134.13,22.318938]
[1745027246311,22.313958,134.87,134.13,22.318938]
[1745027246500,9.15185255,134.89,134.13,22.318938]
[1745027246704,31.46415055,134.89,134.13,22.318938]
[1745027247003,9.15185255,134.89,134.13,22.318938]
[1745027247207,9.15185255,134.89,134.13,28.38909412]
[1745027247505,31.46415055,134.89,134.13,28.38909412]
[1745027248019,9.15185255,134.89,134.13,28.38909412]
[1745027248220,8.60997964,134.91,134.13,6.07015612]
[1745027248517,22.308979,134.89,134.13,17.01144]
[1745027248719,45.00747089,134.89,134.13,17.01144]
[1745027249019,22.69849189,134.89,134.13,17.01144]
[1745027249826,39.70993189,134.89,134.13,17.01144]
[1745027250123,22.69849189,134.89,134.13,17.01144]
[1745027250424,39.70993189,134.89,134.13,17.01144]
[1745027250830,22.69849189,134.89,134.13,17.01144]
[1745027251122,39.70993189,134.89,134.13,17.01144]
[1745027251312,17.01144,134.89,134.13,17.01144]
[1745027251501,9.15185255,134.92,134.13,17.01144]
[1745027251698,26.16329255,134.92,134.13,22.95626269]
[1745027252001,9.15185255,134.92,134.13,5.94482269]
[1745027252218,9.15185255,134.92,134.08,0.063]
[1745027252423,31.45751455,134.92,134.13,22.305661]
[1745027253023,9.15185255,134.92,134.13,22.305661]
[1745027253333,31.45751355,134.92,134.13,22.305661]
[1745027254027,9.15185255,134.92,134.13,22.305661]
[1745027254323,31.45751355,134.92,134.13,22.305661]
[1745027255130,9.15185255,134.92,134.13,22.305661]
[1745027255427,31.45751355,134.92,134.13,22.305661]
[1745027256029,9.15185255,134.92,134.13,22.305661]
[1745027256327,31.45751355,134.92,134.13,22.305661]
[1745027256626,31.45751355,134.92,134.13,28.41215061]
[1745027256930,31.45751355,134.92,134.13,6.10648961]
[1745027257115,9.15185255,134.92,134.08,0.063]
[1745027257315,15.25834255,134.92,134.13,22.305662]
[1745027258027,9.15185255,134.92,134.13,22.305662]
[1745027258325,26.16329155,134.92,134.13,22.305662]
[1745027258532,34.77327119,134.92,134.13,22.305662]
[1745027258730,17.76183219,134.92,134.13,22.305662]
[1745027259028,35.52366419,134.92,134.13,22.305662]
[1745027259325,17.76183219,134.92,134.13,22.305662]
[1745027259631,40.06749419,134.92,134.13,22.305662]
[1745027259932,17.76183219,134.92,134.13,22.305662]
[1745027260229,40.06749419,134.92,134.13,22.305662]
[1745027260931,17.76183219,134.92,134.13,22.305662]
[1745027261334,8.60997964,134.91,134.13,22.305662]
[1745027261532,39.67753982,134.91,134.13,28.21070778]
[1745027261719,9.15185255,134.9,134.13,28.21070778]
[1745027261914,9.15185255,134.9,134.13,5.90504578]
[1745027262129,9.15185255,134.9,134.13,22.30732]
[1745027262630,31.45917255,134.9,134.13,22.30732]
[1745027263030,9.15185255,134.9,134.13,22.30732]
[1745027263229,31.45917255,134.9,134.13,22.30732]
[1745027263934,9.15185255,134.9,134.13,22.30732]
[1745027264227,31.45917255,134.9,134.13,22.30732]
[1745027264931,9.15185255,134.9,134.13,22.30732]
[1745027265232,31.45917255,134.9,134.13,22.30732]
[1745027265531,31.45917255,134.9,134.13,28.31293795]
[1745027265831,31.45917255,134.9,134.13,6.00561795]
[1745027266130,31.45917255,134.9,134.13,22.307321]
[1745027266527,9.15185255,134.9,134.13,22.307321]
[1745027266725,31.45917255,134.9,134.13,22.307321]
[1745027267032,9.15185255,134.9,134.13,22.307321]
[1745027267330,31.45917355,134.9,134.13,22.307321]
[1745027268031,9.15185255,134.9,134.13,22.307321]
[1745027268333,31.45917355,134.9,134.13,22.307321]
[1745027269037,9.15185255,134.9,134.13,22.307321]
[1745027269536,31.45751455,134.9,134.13,22.307321]
[1745027270136,31.45751455,134.9,134.13,28.27762069]
[1745027270648,9.15185255,134.9,134.13,28.27762069]
[1745027270935,9.15185255,134.9,134.13,5.97029969]
[1745027271141,9.15185255,134.9,134.12,13.38177366]
[1745027271530,31.45751455,134.9,134.12,13.38177366]
[1745027271735,31.45751455,134.9,134.13,13.381774]
[1745027271937,9.15185255,134.9,134.13,13.381774]
[1745027272122,22.53362655,134.9,134.13,13.381774]
[1745027272937,9.15185255,134.9,134.13,13.381774]
[1745027273236,22.53362655,134.9,134.13,13.381774]
[1745027273838,9.15185255,134.9,134.13,13.381774]
[1745027274144,13.381774,134.9,134.13,13.381774]
[1745027274638,13.381774,134.9,134.13,19.33300021]
[1745027274939,13.381774,134.9,134.13,5.95122621]
[1745027275139,13.381774,134.9,134.12,13.38177366]
[1745027275441,13.381774,134.9,134.13,19.333]
[1745027278946,13.381774,134.9,134.13,25.17114519]
[1745027279242,13.381774,134.9,134.13,5.83814519]
[1745027279442,13.381774,134.9,134.12,13.38177366]
[1745027279645,13.381774,134.9,134.13,13.381773]
[1745027281548,22.53362655,134.9,134.13,13.381773]
[1745027281846,9.15185255,134.9,134.13,13.381773]
[1745027282148,22.53362655,134.9,134.13,13.381773]
[1745027282849,9.15185255,134.9,134.13,13.381773]
[1745027283250,22.53362555,134.9,134.13,13.381773]
[1745027283651,22.53362555,134.9,134.13,19.23106922]
[1745027283851,9.15185255,134.9,134.13,19.23106922]
[1745027284063,9.15185255,134.9,134.13,5.84929622]
[1745027284251,28.38292155,134.9,134.12,13.38177366]
[1745027284553,28.38292155,134.9,134.13,13.381774]
[1745027284853,9.15185255,134.9,134.13,13.381774]
[1745027285154,22.53362655,134.9,134.13,13.381774]
[1745027285947,9.15185255,134.9,134.13,13.381774]
[1745027286149,22.53362655,134.9,134.13,13.381774]
[1745027286657,17.76183219,134.89,134.13,13.381774]
[1745027287157,31.14360619,134.89,134.13,13.381774]
[1745027287655,22.53362655,134.89,134.13,13.381774]
[1745027287955,9.15185255,134.89,134.13,19.42598715]
[1745027288257,22.53362655,134.89,134.13,6.04421315]
[1745027288454,22.53362655,134.89,134.12,13.38177366]
[1745027288656,22.53362655,134.89,134.13,19.425988]
[1745027288851,21.91570763,134.91,134.13,19.425988]
[1745027289051,19.425988,134.89,134.13,19.425988]
[1745027291955,19.425988,134.89,134.13,25.40955277]
[1745027292257,28.57784055,134.89,134.13,5.98356477]
[1745027292452,28.57784055,134.89,134.12,13.38177366]
[1745027292652,9.15185255,134.89,134.12,13.38177366]
[1745027292851,31.14360519,134.89,134.12,13.38177366]
[1745027293039,18.21683219,134.88,134.13,13.381773]
[1745027293655,13.381774,134.87,134.13,13.381773]
[1745027293855,18.21683219,134.86,134.13,13.381773]
[1745027295763,18.21683219,134.86,134.13,19.33163265]
[1745027296059,18.21683219,134.86,134.13,5.94985965]
[1745027296259,9.60685255,134.86,134.12,13.38177366]
[1745027296455,9.60685255,134.86,134.13,19.331633]
[1745027300559,9.60685255,134.86,134.13,25.42456795]
[1745027300859,9.60685255,134.86,134.13,6.09293495]
[1745027301060,9.60685255,134.86,134.12,13.38177366]
[1745027301354,9.60685255,134.86,134.13,19.331633]
[1745027304350,8.60997964,134.85,134.13,19.331633]
[1745027304550,9.60685255,134.84,134.13,19.331633]
[1745027304959,28.43848555,134.84,134.13,19.331633]
[1745027305163,19.331633,134.84,134.13,19.331633]
[1745027305351,8.60997964,134.85,134.13,25.31906779]
[1745027305553,19.331633,134.84,134.13,25.31906779]
[1745027305752,19.331633,134.84,134.13,5.98743479]
[1745027305963,19.331633,134.84,134.12,13.38177366]
[1745027306352,19.331633,134.84,134.13,13.381773]
[1745027309268,19.331633,134.84,134.13,19.26890841]
[1745027309666,19.331633,134.84,134.13,5.88713541]
[1745027309968,19.331633,134.84,134.13,19.268908]
[1745027314073,19.331633,134.84,134.13,25.20686711]
[1745027314371,19.331633,134.84,134.13,5.93795911]
[1745027314670,19.331633,134.84,134.13,19.331633]
[1745027317673,8.60997964,134.83,134.13,19.331633]
[1745027317857,18.18072108,134.83,134.13,19.331633]
[1745027318477,18.18072108,134.83,134.13,25.34231154]
[1745027318775,18.18072108,134.83,134.13,6.01067854]
[1745027318977,18.18072108,134.83,134.12,13.38177366]
[1745027319178,18.18072108,134.83,134.13,21.915707]
[1745027323484,8.60997964,134.83,134.13,27.99675217]
[1745027323986,8.60997964,134.88,134.12,13.38177366]
[1745027324291,21.915707,134.84,134.13,21.915707]
[1745027327496,21.915707,134.84,134.13,27.81369524]
[1745027327795,21.915707,134.84,134.13,5.89798824]
[1745027327998,21.915707,134.84,134.12,13.38177366]